Cogmind - Beta 9.6 @@@ ROGUE MODE // 2020.05.02 @ 23:41:44 // AFD2020/Player2 Player: Nalzok Result: Destroyed by D-53 Grenadier with Mini Grenade Launcher Performance ------------- Evolutions (0) 0 Regions Visited (2) 400 Robots Destroyed (8) 40 Value Destroyed (10) 10 Prototype IDs (0) 0 Alien Tech Used (0) 0 Bonus (-169) -169 TOTAL SCORE: 281 Bonus ------- Follower Combat Kills 42 Friendly Fire -211 Cogmind --------- Core Integrity 0/250 Matter 212/300 Energy 100/100 System Corruption 0% Temperature Cool (0) Movement Core (200) Ox3 Location -10/Mines Parts ------- > --- POWER (1) -------- (None) > --- PROPULSION (2) --- (None) > --- UTILITY (2) ------ Small Storage Unit Medium Storage Unit > --- WEAPON (2) ------- (None) > --- INVENTORY (10) --- Ion Engine Light Ion Engine Light Ion Engine Signal Interpreter EM Pulse Gun Assault Rifle Light Assault Rifle Light Assault Rifle Light Assault Rifle Light Assault Rifle Peak State ------------ > --- POWER ------------ Ion Engine > --- PROPULSION ------- Aluminum Leg Aluminum Leg > --- UTILITY ---------- Small Storage Unit Medium Storage Unit > --- WEAPON ----------- Assault Rifle Light Assault Rifle > --- INVENTORY -------- Ion Engine Light Ion Engine Light Ion Engine Signal Interpreter EM Pulse Gun Assault Rifle Light Assault Rifle Light Assault Rifle Light Assault Rifle Grenade Launcher [Rating: 8] Favorites ----------- Power Ion Engine Engine Ion Engine Propulsion Aluminum Leg Leg Aluminum Leg Utility Small Storage Unit Storage Small Storage Unit Weapon Assault Rifle Ballistic Gun Assault Rifle Launcher Grenade Launcher Build | -11 -10 -10 ------- Run | Scr Mat Min Slots Evolved . | . . . Power . | . . . Propulsion . | . . . Utility . | . . . Weapon . | . . . Parts Attached 3 | . 1 2 Power . | . . . Engine . | . . . Core . | . . . Reactor . | . . . Propulsion . | . . . Treads . | . . . Leg . | . . . Wheel . | . . . Hover . | . . . Flight . | . . . Utility 1 | . 1 . Device . | . . . Storage 1 | . 1 . Processor . | . . . Hackware . | . . . Protection . | . . . Artifact . | . . . Weapon 2 | . . 2 Energy Gun . | . . . Energy Cannon . | . . . Ballistic Gun . | . . . Ballistic Cannon . | . . . Launcher 2 | . . 2 Special Weapon . | . . . Impact Weapon . | . . . Slashing Weapon . | . . . Piercing Weapon . | . . . Special Melee Weapon . | . . . Unidentified Prototypes . | . . . Parts Lost 6 | . . 6 Power 1 | . . 1 Propulsion 2 | . . 2 Utility . | . . . Weapon 3 | . . 3 Highest Loss Streak 6 | . . 6 Average Slot Usage (%) 97 | . 93 99 Engine 14 | . 14 14 Leg 28 | . 28 28 Storage 26 | . 21 28 Ballistic Gun 25 | . 28 24 Launcher 1 | . . 2 Naked Turns . | . . . Heaviest Build 23 | 12 20 23 Greatest Support 20 | 20 20 20 Greatest Overweight (x) 3 | . . 3 Average Overweight (x) . | . . . Largest Inventory Capacity 10 | 6 10 10 Average Capacity 9 | 6 8 10 Most Carried 10 | 5 3 10 Average Carried 5 | 4 2 7 Final Capacity 10 | 6 10 10 Final Carried 10 | 2 3 10 Class Distribution -------------------- 100% | Mutant Dominant Class ---------------- Mutant | -10/Materials Mutant | -10/Mines Resources | -11 -10 -10 ----------- Run | Scr Mat Min Matter Collected 237 | 200 . 37 Remotely . | . . . Salvage Created 27 | . . 27 Parts . | . . . Haulers Intercepted . | . . . Recyclers Shooed . | . . . Parts Field Recycled . | . . . Retrieved Matter . | . . . Parts Self-Destructed . | . . . Prevented . | . . . Kills | -11 -10 -10 ------- Run | Scr Mat Min Combat Hostiles Destroyed 8 | . . 8 AOE 8 | . . 8 Classes Destroyed 1 | . . 1 Assembled 8 | . . 8 Best Kill Streak 8 | . . 8 Combat Bots Only 8 | . . 8 Max Kills in Single Turn 3 | . . 3 Gunslinging . | . . . Exploded 3 | . . 3 Melee . | . . . Uniques/NPCs Destroyed . | . . . Combat | -11 -10 -10 -------- Run | Scr Mat Min Damage Taken 689 | . . 689 Core 130 | . . 130 Absorbed by Shields . | . . . Core Remaining (%) 100 | 100 . . Volleys Fired 13 | . . 13 Largest 2 | . . 2 Hottest 60 | . . 60 Shots Fired 21 | . . 21 Gun 11 | . . 11 Cannon . | . . . Launcher 10 | . . 10 Special . | . . . Kinetic 11 | . . 11 Thermal . | . . . Explosive 10 | . . 10 Electromagnetic . | . . . Robot Hit Streak 6 | . . 6 Robot Miss Streak 7 | . . 7 Penetration Max . | . . . Secondary Targets . | . . . Shots Hit Robots 11 | . . 11 Core Hits 24 | . . 24 Critical Hits . | . . . Critical Kills . | . . . Critical Parts Destroyed . | . . . Melee Attacks . | . . . Impact . | . . . Slashing . | . . . Piercing . | . . . Sneak Attacks . | . . . Combat Hostiles . | . . . Follow-up Attacks . | . . . Damage Inflicted 756 | . . 756 Guns 44 | . . 44 Cannons . | . . . Explosions 712 | . . 712 Melee . | . . . Ramming . | . . . Kinetic 44 | . . 44 Thermal . | . . . Explosive 712 | . . 712 Electromagnetic . | . . . Impact . | . . . Slashing . | . . . Piercing . | . . . Highest Corruption . | . . . Average Corruption . | . . . Corruption Purged . | . . . Overload Shots . | . . . Overflow Damage 69 | . . 69 Projectiles . | . . . Explosions 69 | . . 69 Melee . | . . . Knockbacks . | . . . Impact . | . . . Kinetic . | . . . Secondary . | . . . Self-Inflicted Damage 80 | . . 80 Shots 4 | . . 4 Rammed . | . . . Targets Rammed . | . . . Kicked . | . . . Crushed . | . . . Highest Temperature 20 | . . 20 Average Temperature 12 | . . 12 Received Heat Transfer 29 | . . 29 Siege Activations . | . . . Robots Corrupted . | . . . Combat Hostiles . | . . . Parts Fried . | . . . Impact Corruptions . | . . . Robots Melted . | . . . Combat Hostiles . | . . . Parts Melted . | . . . Heat Transferred . | . . . Parts Sabotaged . | . . . Parts Stolen . | . . . Parts Stripped . | . . . Power Chain Reactions . | . . . Missiles Intercepted . | . . . Alert | -11 -10 -10 ------- Run | Scr Mat Min Peak Influence 192 | . 10 192 Average Influence 110 | . 4 161 Maximum Alert Level . | . . . Low Security (%) 100 | 100 100 100 Level 1 . | . . . Level 2 . | . . . Level 3 . | . . . Level 4 . | . . . Level 5 . | . . . High Security . | . . . Max Security . | . . . Squads Dispatched . | . . . Investigation . | . . . Extermination . | . . . Reinforcement . | . . . Assault . | . . . Garrison . | . . . Intercept . | . . . Construction Impeded . | . . . Haulers Reinforced . | . . . Stealth | -11 -10 -10 --------- Run | Scr Mat Min Distress Signals . | . . . Communications Jammed . | . . . Distress Signals . | . . . Times Spotted 26 | . 1 25 Peak Tracking Total 7 | . . 7 Tactical Retreats . | . . . Traps | -11 -10 -10 ------- Run | Scr Mat Min Traps Triggered . | . . . Indirectly . | . . . Trap Hack Attempts . | . . . Triggered . | . . . Disarmed . | . . . Reprogrammed . | . . . Reused . | . . . Traps Extracted . | . . . Installed . | . . . Triggered . | . . . Machines | -11 -10 -10 ---------- Run | Scr Mat Min Machines Disabled 1 | . . 1 Max in Single Turn . | . . . Machines Sabotaged . | . . . Garrisons Compromised . | . . . Overloaded Fab Kills . | . . . Fab Network Shutdowns . | . . . Hacking | -11 -10 -10 --------- Run | Scr Mat Min Machines Accessed 2 | . 2 . Terminals 2 | . 2 . Fabricators . | . . . Repair Stations . | . . . Recycling Units . | . . . Scanalyzers . | . . . Garrison Access . | . . . Total Hacks 6 | . 6 . Successful 4 | . 4 . Failed 2 | . 2 . Catastrophic . | . . . Database Lockouts . | . . . Manual 6 | . 6 . Terminals 6 | . 6 . Fabricators . | . . . Repair Stations . | . . . Recycling Units . | . . . Scanalyzers . | . . . Garrison Access . | . . . Terminal Hacks . | . . . Fabricator Hacks . | . . . Repair Station Hacks . | . . . Recycling Unit Hacks . | . . . Scanalyzer . | . . . Garrison Access Hacks . | . . . Unauthorized Hacks 4 | . 4 . Terminals 4 | . 4 . Botnet 2 | . 2 . Detonate 1 | . 1 . Operators 1 | . 1 . Fabricators . | . . . Repair Stations . | . . . Recycling Units . | . . . Scanalyzers . | . . . Garrison Access . | . . . Data Cores Recovered . | . . . Used . | . . . Hacking Detections 1 | . 1 . Full Trace Events . | . . . Feedback Events . | . . . Feedback Blocked . | . . . Robot Schematics Acquired . | . . . Robots Built . | . . . Matter . | . . . Time . | . . . Total Robot Build Rating . | . . . Part Schematics Acquired . | . . . Parts Built . | . . . Matter . | . . . Time . | . . . Total Part Build Rating . | . . . Parts Repaired . | . . . Time . | . . . Parts Recycled . | . . . Recycled Matter . | . . . Retrieved Matter . | . . . Retrieved Components . | . . . Parts Scanalyzed . | . . . Part Schematics Acquired . | . . . Parts Damaged . | . . . Bothacking | -11 -10 -10 ------------ Run | Scr Mat Min Used RIF Installer . | . . . Robots Hacked . | . . . Non-combat . | . . . Combat . | . . . Robot Hacks Applied . | . . . Relay Couplers Released . | . . . Robots Rewired . | . . . Allies Hacked . | . . . Hacks Repelled . | . . . Allies | -11 -10 -10 -------- Run | Scr Mat Min Total Allies 3 | . 1 2 Largest Group 3 | . 1 3 Highest-Rated Group 98 | . 52 98 Highest-Rated Ally 56 | . 52 56 Total Orders . | . . . Ally Attacks 30 | . . 30 Total Damage 805 | . . 805 Kills 13 | . . 13 Allies Corrupted . | . . . Allies Melted . | . . . Intel | -11 -10 -10 ------- Run | Scr Mat Min Robot Analysis Total . | . . . Derelict Logs Recovered . | . . . Drone Launches . | . . . Drone Recoveries . | . . . Exploration | -11 -10 -10 ------------- Run | Scr Mat Min Turns Passed 296 | 2 94 200 Spaces Moved 207 | 1 77 129 Core 2 | . . 2 Treads . | . . . Legs 205 | 1 77 127 Wheels . | . . . Hover . | . . . Flight . | . . . Fastest Speed 120 | 120 120 120 Average Speed 121 | 120 120 122 Slowest Speed 200 | 120 120 200 Overloaded Moves . | . . . Propulsion Burnouts . | . . . Robots Hopped . | . . . Cave-ins Triggered . | . . . Exploration Rate (%) 16 | 2 17 30 Regions Visited 2 Branch Regions 1 Pre-discovered Areas . | . . . Known Exits Taken . | . . . Unknown Exits Taken 2 | 1 1 . Scrap Searched . | . . . Spaces Dug . | . . . Terrain Destroyed 90 | . . 90 Melee . | . . . Projectile . | . . . AOE 90 | . . 90 Actions | -11 -10 -10 --------- Run | Scr Mat Min Total 233 | 4 78 151 Wait . | . . . Move 205 | . 76 129 Hop . | . . . Pick Up 8 | . 1 7 Fast Attach 2 | . 1 1 Attach . | . . . Detach . | . . . Swap 1 | . . 1 Drop 4 | 4 . . Fire 13 | . . 13 Melee . | . . . Ram . | . . . Kick . | . . . Crush . | . . . Escape Stasis . | . . . Rewire . | . . . Trap . | . . . Miscellaneous . | . . . Route ------- -11/Scrapyard -10/Materials -10/Mines History --------- Turn | Location | Event 3 | -11/Scrapyard | Discovered new exit (range 0) 3 | -11/Scrapyard | Entered Materials 74 | -10/Materials | Discovered new exit (range 16) 97 | -10/Materials | Entered Mines 97 | -10/Mines | Accompanied by 1 ally 241 | -10/Mines | Assembled infested the area 292 | -10/Mines | Core integrity fell below 50% 295 | -10/Mines | Core integrity fell below 20% 297 | -10/Mines | Destroyed by D-53 Grenadier with Mini Grenade Launcher Last Messages --------------- 00281_ Player 2 attaches Lgt. Ion Engine. 00282_ The unstable cave ceiling collapses. 00282_ Player 2 attaches Lrg. Matter Pod. 00283_ as-45677 destroyed. 00285_ K-01 Serf collects debris. 00286_ Acquired Grenade Launcher. 00288_ as-17004 destroyed. 00289_ Player 2 attaches Flight Unit. 00289_ Destroyed Asb. Hover Unit. 00289_ as-49002 destroyed. 00290_ Aluminum Leg destroyed. 00290_ DJ-A6L(g) destroyed. 00290_ K-01 Serf collects debris. 00291_ The unstable cave ceiling collapses. 00291_ K-01 Serf destroyed. 00292_ Ion Engine destroyed. 00292_ Grenade Launcher destroyed. 00293_ Aluminum Leg destroyed. 00293_ Grenade Launcher destroyed. 00295_ The unstable cave ceiling collapses. Map ----- +----------------------------------------------------+ | ???????????????????# ####### # | | ????????????????????# ## | | ????????????????????# ##### | | ????????????????????# # #### """ #??? | | ????????????????????# ##?# """ ### #?? | | ????????????????????# #?# """ #?## #?# | | ?????????????# ###### # ## #??## ## | | ??????? ## ### ##???## | | ??????????????####### ########?## ##?????# | | ?????????????????# #????????#####??????## # | | ?????????????????# """ #????????????????????##### | | ?????????????????# """ #????????????????????????# | | ????????????????## #????????????????????????# | | ????????????????# #??????????????####?????## | | ????????????????# #?????????????## ####### | | ????????????????# #?????????????# ## | | ????????????????# #????????????## | | ????????????????# # ###????????????# | | ????????????????###########??????????# ## #### | | ???????????????????## ##?????#???# #?# #??? | | ??????????????????## ##??# #? ### #?# #??? | | ?????????????????## # #? # #?# ### #??? | | ????????????????## # ### #??? | | ????????????????# @ d #####??? | | ????????????????# d * #??????? | | ????????????????## # @ # #######??????? | | ????????????????# ##???? #???????????? | | ????????????????## #????????????????????? | | ?????????????????# ####????????????????????? | | ????????????????# a #???????????????????????? | | ????????????????# #???????????????????????? | | ????????????????# ##???????????????????????? | | ???????????????# #????????????????????????? | | ???????????????### ?????????????????????????? | | ????????????????? ?????????????????????????? | | ???????????????? ?????????????????????????? | | ???????????????# ##### #?????????????????????????? | | ???????????????? ????##??????????????????????????? | | ?????????????????????????????????????????????????? | | ?????????????????????????????????????????????????? | | ?????????????????????????????????????????????????? | | ?????????????????????????????????????????????????? | | ?????????????????????????????????????????????????? | | ?????????????????????????????????????????????????? | | ?????????????????????????????????????????????????? | | ?????????????????????????????????????????????????? | | ?????????????????????????????????????????????????? | | ?????????????????????????????????????????????????? | | ?????????????????????????????????????????????????? | | ?????????????????????????????????????????????????? | +----------------------------------------------------+ Best States ------------- Heat Dissipation 25 Energy Generation 10 Energy Capacity 250 Matter Stores 300 Matter Capacity 300 Sight Range 16 Terrain Scan Density 10 Evasion (%) 40 Item Schematics ----------------- None Robot Schematics ------------------ None Fabricated ------------ Nothing Alien Tech Used ----------------- None Achievements -------------- None Challenges ------------ None Player 2 | -11 -10 -10 ---------- Run | Scr Mat Min Slots Evolved . | . . . Power . | . . . Propulsion . | . . . Utility . | . . . Weapon . | . . . Parts Attached 16 | . 2 14 Parts Lost 7 | . . 7 Damage Taken 367 | . . 367 Core 121 | . . 121 Player 2/Cogmind (%) 48 | . . 48 Absorbed by Shields . | . . . Damage Inflicted 592 | . . 592 Player 2/Cogmind (%) 43 | . . 43 Combat Hostiles Destroyed 8 | . . 8 Player 2/Cogmind (%) 50 | . . 50 Game ------ Seed ReinforcedGammaAnalyzer Manual? 0 Play Time 00:05:33 Cumulative 252.8 hours Start 2020.05.02 @ 23:38:22 End 2020.05.02 @ 23:41:44 Sessions 1 Manual Loads 0 Difficulty Rogue Special Mode AFD2020/Player2 Game No. 392 Rogue 391 Adventurer 0 Explorer 1 Win Type - Total 1 Types 1/0/0/0/0/0/0 Lore% 65 Gallery% 79 Achievement% 54 Wizard Run 0 Options --------- ASCII 1 Keyboard 1 Movement Vi Keybinds 0 Fullscreen 2 Font 14/Cog Map View 72x52 Tactical HUD 1 Map Filters NONE Filters LOW_CONTRAST(13,24,33) Steam 0 RUN: 2a30c0fb-148d-416d-a1cc-160cc1689bf3